{"text_format":"3","workbook":"xlsx","n_sheets":2,"sheets":["Inventar echipament","Setări"],"not_rendered":{"defined_names":4},"read":"whole","date_system":"1900"}

{"sheet":"Inventar echipament","index":0,"n_rows":35,"n_cols":6,"rows_kept":35,"merged":[[0,1,2,2],[0,4,0,5]]}
[]
[{"$nulls":4},"Evidențiați elementele mai vechi decât:"]
[{"$nulls":4},4]
[]
[null,"ID ECHIPAMENT","NUME ARTICOL","ATRIBUIT LUI","DATA LANSĂRII","VÂRSTA ARTICOLULUI"]
[null,"ARTICOL0001","scaun","Angajat 1",{"$f":"TODAY()-25","v":"2012-10-27"},{"$f":"IF(tblInventarEchipament[[#This Row],[DATA LANSĂRII]]<>\"\",TODAY()-tblInventarEchipament[[#This Row],[DATA LANSĂRII]],\"\")","v":{"v":25,"d":"25 de zile"}}]
[null,"ARTICOL0002","imprimantă laser","Angajat 2",{"$f":"TODAY()-479","v":"2011-07-31"},{"$f":"IF(tblInventarEchipament[[#This Row],[DATA LANSĂRII]]<>\"\",TODAY()-tblInventarEchipament[[#This Row],[DATA LANSĂRII]],\"\")","v":{"v":479,"d":"479 de zile"}}]
[null,"ARTICOL0003","scaner","Angajat 3",{"$f":"TODAY()-177","v":"2012-05-28"},{"$f":"IF(tblInventarEchipament[[#This Row],[DATA LANSĂRII]]<>\"\",TODAY()-tblInventarEchipament[[#This Row],[DATA LANSĂRII]],\"\")","v":{"v":177,"d":"177 de zile"}}]
[null,"ARTICOL0004","imprimantă laser","Angajat 7",{"$f":"TODAY()-18","v":"2012-11-03"},{"$f":"IF(tblInventarEchipament[[#This Row],[DATA LANSĂRII]]<>\"\",TODAY()-tblInventarEchipament[[#This Row],[DATA LANSĂRII]],\"\")","v":{"v":18,"d":"18 de zile"}}]
[null,"ARTICOL0005","aparat pentru cafea","Angajat 20",{"$f":"TODAY()-227","v":"2012-04-08"},{"$f":"IF(tblInventarEchipament[[#This Row],[DATA LANSĂRII]]<>\"\",TODAY()-tblInventarEchipament[[#This Row],[DATA LANSĂRII]],\"\")","v":{"v":227,"d":"227 de zile"}}]
[null,"ARTICOL0006","scaner","Angajat 14",{"$f":"TODAY()-50","v":"2012-10-02"},{"$f":"IF(tblInventarEchipament[[#This Row],[DATA LANSĂRII]]<>\"\",TODAY()-tblInventarEchipament[[#This Row],[DATA LANSĂRII]],\"\")","v":{"v":50,"d":"50 de zile"}}]
[null,"ARTICOL0007","masă","Angajat 4",{"$f":"TODAY()-120","v":"2012-07-24"},{"$f":"IF(tblInventarEchipament[[#This Row],[DATA LANSĂRII]]<>\"\",TODAY()-tblInventarEchipament[[#This Row],[DATA LANSĂRII]],\"\")","v":{"v":120,"d":"120 de zile"}}]
[null,"ARTICOL0008","copiator","Angajat 12",{"$f":"TODAY()-499","v":"2011-07-11"},{"$f":"IF(tblInventarEchipament[[#This Row],[DATA LANSĂRII]]<>\"\",TODAY()-tblInventarEchipament[[#This Row],[DATA LANSĂRII]],\"\")","v":{"v":499,"d":"499 de zile"}}]
[null,"ARTICOL0009","monitor suplimentar","Angajat 8",{"$f":"TODAY()-30","v":"2012-10-22"},{"$f":"IF(tblInventarEchipament[[#This Row],[DATA LANSĂRII]]<>\"\",TODAY()-tblInventarEchipament[[#This Row],[DATA LANSĂRII]],\"\")","v":{"v":30,"d":"30 de zile"}}]
[null,"ARTICOL0010","tablă albă","Angajat 19",{"$f":"TODAY()-50","v":"2012-10-02"},{"$f":"IF(tblInventarEchipament[[#This Row],[DATA LANSĂRII]]<>\"\",TODAY()-tblInventarEchipament[[#This Row],[DATA LANSĂRII]],\"\")","v":{"v":50,"d":"50 de zile"}}]
[null,"ARTICOL0011","copiator","Angajat 12",{"$f":"TODAY()-450","v":"2011-08-29"},{"$f":"IF(tblInventarEchipament[[#This Row],[DATA LANSĂRII]]<>\"\",TODAY()-tblInventarEchipament[[#This Row],[DATA LANSĂRII]],\"\")","v":{"v":450,"d":"450 de zile"}}]
[null,"ARTICOL0012","foi de scris","Angajat 18",{"$f":"TODAY()-420","v":"2011-09-28"},{"$f":"IF(tblInventarEchipament[[#This Row],[DATA LANSĂRII]]<>\"\",TODAY()-tblInventarEchipament[[#This Row],[DATA LANSĂRII]],\"\")","v":{"v":420,"d":"420 de zile"}}]
[null,"ARTICOL0013","monitor suplimentar","Angajat 8",{"$f":"TODAY()-250","v":"2012-03-16"},{"$f":"IF(tblInventarEchipament[[#This Row],[DATA LANSĂRII]]<>\"\",TODAY()-tblInventarEchipament[[#This Row],[DATA LANSĂRII]],\"\")","v":{"v":250,"d":"250 de zile"}}]
[null,"ARTICOL0014","aparat pentru cafea","Angajat 9",{"$f":"TODAY()-45","v":"2012-10-07"},{"$f":"IF(tblInventarEchipament[[#This Row],[DATA LANSĂRII]]<>\"\",TODAY()-tblInventarEchipament[[#This Row],[DATA LANSĂRII]],\"\")","v":{"v":45,"d":"45 de zile"}}]
[null,"ARTICOL0015","foi de scris","Angajat 13",{"$f":"TODAY()-502","v":"2011-07-08"},{"$f":"IF(tblInventarEchipament[[#This Row],[DATA LANSĂRII]]<>\"\",TODAY()-tblInventarEchipament[[#This Row],[DATA LANSĂRII]],\"\")","v":{"v":502,"d":"502 de zile"}}]
[null,"ARTICOL0016","scaner","Angajat 1",{"$f":"TODAY()-350","v":"2011-12-07"},{"$f":"IF(tblInventarEchipament[[#This Row],[DATA LANSĂRII]]<>\"\",TODAY()-tblInventarEchipament[[#This Row],[DATA LANSĂRII]],\"\")","v":{"v":350,"d":"350 de zile"}}]
[null,"ARTICOL0017","copiator","Angajat 19",{"$f":"TODAY()-125","v":"2012-07-19"},{"$f":"IF(tblInventarEchipament[[#This Row],[DATA LANSĂRII]]<>\"\",TODAY()-tblInventarEchipament[[#This Row],[DATA LANSĂRII]],\"\")","v":{"v":125,"d":"125 de zile"}}]
[null,"ARTICOL0018","tablă albă","Angajat 15",{"$f":"TODAY()-90","v":"2012-08-23"},{"$f":"IF(tblInventarEchipament[[#This Row],[DATA LANSĂRII]]<>\"\",TODAY()-tblInventarEchipament[[#This Row],[DATA LANSĂRII]],\"\")","v":{"v":90,"d":"90 de zile"}}]
[null,"ARTICOL0019","scaun","Angajat 16",{"$f":"TODAY()-730","v":"2010-11-22"},{"$f":"IF(tblInventarEchipament[[#This Row],[DATA LANSĂRII]]<>\"\",TODAY()-tblInventarEchipament[[#This Row],[DATA LANSĂRII]],\"\")","v":{"v":730,"d":"730 de zile"}}]
[null,"ARTICOL0020","cârpă de praf (1 set)","Angajat 3",{"$f":"TODAY()-540","v":"2011-05-31"},{"$f":"IF(tblInventarEchipament[[#This Row],[DATA LANSĂRII]]<>\"\",TODAY()-tblInventarEchipament[[#This Row],[DATA LANSĂRII]],\"\")","v":{"v":540,"d":"540 de zile"}}]
[null,"ARTICOL0021","imprimantă laser","Angajat 7",{"$f":"TODAY()-18","v":"2012-11-03"},{"$f":"IF(tblInventarEchipament[[#This Row],[DATA LANSĂRII]]<>\"\",TODAY()-tblInventarEchipament[[#This Row],[DATA LANSĂRII]],\"\")","v":{"v":18,"d":"18 de zile"}}]
[null,"ARTICOL0022","computer laptop","Angajat 8",{"$f":"TODAY()-283","v":"2012-02-12"},{"$f":"IF(tblInventarEchipament[[#This Row],[DATA LANSĂRII]]<>\"\",TODAY()-tblInventarEchipament[[#This Row],[DATA LANSĂRII]],\"\")","v":{"v":283,"d":"283 de zile"}}]
[null,"ARTICOL0023","foi de scris","Angajat 9",{"$f":"TODAY()-479","v":"2011-07-31"},{"$f":"IF(tblInventarEchipament[[#This Row],[DATA LANSĂRII]]<>\"\",TODAY()-tblInventarEchipament[[#This Row],[DATA LANSĂRII]],\"\")","v":{"v":479,"d":"479 de zile"}}]
[null,"ARTICOL0024","imprimantă laser","Angajat 19",{"$f":"TODAY()-355","v":"2011-12-02"},{"$f":"IF(tblInventarEchipament[[#This Row],[DATA LANSĂRII]]<>\"\",TODAY()-tblInventarEchipament[[#This Row],[DATA LANSĂRII]],\"\")","v":{"v":355,"d":"355 de zile"}}]
[null,"ARTICOL0025","masă","Angajat 7",{"$f":"TODAY()-28","v":"2012-10-24"},{"$f":"IF(tblInventarEchipament[[#This Row],[DATA LANSĂRII]]<>\"\",TODAY()-tblInventarEchipament[[#This Row],[DATA LANSĂRII]],\"\")","v":{"v":28,"d":"28 de zile"}}]
[null,"ARTICOL0026","tablă albă","Angajat 8",{"$f":"TODAY()-28","v":"2012-10-24"},{"$f":"IF(tblInventarEchipament[[#This Row],[DATA LANSĂRII]]<>\"\",TODAY()-tblInventarEchipament[[#This Row],[DATA LANSĂRII]],\"\")","v":{"v":28,"d":"28 de zile"}}]
[null,"ARTICOL0027","computer laptop","Angajat 19",{"$f":"TODAY()-736","v":"2010-11-16"},{"$f":"IF(tblInventarEchipament[[#This Row],[DATA LANSĂRII]]<>\"\",TODAY()-tblInventarEchipament[[#This Row],[DATA LANSĂRII]],\"\")","v":{"v":736,"d":"736 de zile"}}]
[null,"ARTICOL0028","masă","Angajat 12",{"$f":"TODAY()-68","v":"2012-09-14"},{"$f":"IF(tblInventarEchipament[[#This Row],[DATA LANSĂRII]]<>\"\",TODAY()-tblInventarEchipament[[#This Row],[DATA LANSĂRII]],\"\")","v":{"v":68,"d":"68 de zile"}}]
[null,"ARTICOL0029","scaner","Angajat 14",{"$f":"TODAY()-67","v":"2012-09-15"},{"$f":"IF(tblInventarEchipament[[#This Row],[DATA LANSĂRII]]<>\"\",TODAY()-tblInventarEchipament[[#This Row],[DATA LANSĂRII]],\"\")","v":{"v":67,"d":"67 de zile"}}]
[null,"ARTICOL0030","aparat pentru cafea","Angajat 3",{"$f":"TODAY()-149","v":"2012-06-25"},{"$f":"IF(tblInventarEchipament[[#This Row],[DATA LANSĂRII]]<>\"\",TODAY()-tblInventarEchipament[[#This Row],[DATA LANSĂRII]],\"\")","v":{"v":149,"d":"149 de zile"}}]

{"sheet":"Setări","index":1,"n_rows":23,"n_cols":4,"rows_kept":23}
[]
[]
[null,"ANGAJAȚI",null,"ARTICOLE"]
[null,"Angajat 1",null,"scaun"]
[null,"Angajat 2",null,"aparat pentru cafea"]
[null,"Angajat 3",null,"copiator"]
[null,"Angajat 4",null,"computer desktop"]
[null,"Angajat 5",null,"cârpă de praf (1 set)"]
[null,"Angajat 6",null,"monitor suplimentar"]
[null,"Angajat 7",null,"imprimantă cu cerneală"]
[null,"Angajat 8",null,"computer laptop"]
[null,"Angajat 9",null,"imprimantă laser"]
[null,"Angajat 10",null,"markere (3 pachete)"]
[null,"Angajat 11",null,"scaner"]
[null,"Angajat 12",null,"foi de scris"]
[null,"Angajat 13",null,"masă"]
[null,"Angajat 14",null,"Unitate USB"]
[null,"Angajat 15",null,"tablă albă"]
[null,"Angajat 16"]
[null,"Angajat 17"]
[null,"Angajat 18"]
[null,"Angajat 19"]
[null,"Angajat 20"]